[Event "*** Titled Tuesday Blitz"]
[Site "Chess.com"]
[Date "2020.04.14"]
[Round "6"]
[White "velemajstor767276"]
[Black "Rakesh"]
[Result "0-1"]
[WhiteElo "2574"]
[BlackElo "2407"]
[TimeControl "180+1"]
[EndTime "11:04:33 PDT"]
[Termination "Rakesh won on time"]

1. d4 {[%clk 0:03:00.4]} 1... Nf6 {[%clk 0:02:59]} 2. c4 {[%clk 0:02:58.4]} 2...
e5 {[%clk 0:02:59.3]} 3. dxe5 {[%clk 0:02:57.9]} 3... Ng4 {[%clk 0:02:59.8]} 4.
Nf3 {[%clk 0:02:50.9]} 4... Bc5 {[%clk 0:03:00]} 5. e3 {[%clk 0:02:45.4]} 5...
Nc6 {[%clk 0:02:48.7]} 6. Be2 {[%clk 0:02:34.9]} 6... O-O {[%clk 0:02:48.2]} 7.
Nc3 {[%clk 0:02:34.1]} 7... Re8 {[%clk 0:02:48.6]} 8. O-O {[%clk 0:02:26.6]}
8... Ngxe5 {[%clk 0:02:44.3]} 9. b3 {[%clk 0:02:22.8]} 9... Nxf3+ {[%clk
0:02:39.7]} 10. Bxf3 {[%clk 0:02:22.3]} 10... Ne5 {[%clk 0:02:40.6]} 11. Be4
{[%clk 0:02:06.2]} 11... a5 {[%clk 0:02:41.5]} 12. Qh5 {[%clk 0:01:58.5]} 12...
g6 {[%clk 0:02:35.5]} 13. Qe2 {[%clk 0:01:52.5]} 13... Ra6 {[%clk 0:02:26.9]}
14. Bb2 {[%clk 0:01:51.4]} 14... Rae6 {[%clk 0:02:14.8]} 15. Rad1 {[%clk
0:01:42.9]} 15... Qh4 {[%clk 0:02:13.2]} 16. g3 {[%clk 0:01:38.4]} 16... Qh3
{[%clk 0:01:47.6]} 17. Bg2 {[%clk 0:01:34.3]} 17... Qh6 {[%clk 0:01:39.4]} 18.
Nd5 {[%clk 0:01:31.8]} 18... Rc6 {[%clk 0:01:24.4]} 19. f4 {[%clk 0:01:30]}
19... d6 {[%clk 0:01:09.9]} 20. fxe5 {[%clk 0:01:27.6]} 20... dxe5 {[%clk
0:01:09.9]} 21. Nf6+ {[%clk 0:01:20.3]} 21... Rxf6 {[%clk 0:01:09.6]} 22. Rxf6
{[%clk 0:01:21.2]} 22... Bxe3+ {[%clk 0:01:08.6]} 23. Kh1 {[%clk 0:01:19.9]}
23... Bf5 {[%clk 0:01:09.5]} 24. Rf1 {[%clk 0:01:16.5]} 24... Qg5 {[%clk
0:01:05.5]} 25. R6xf5 {[%clk 0:00:52.4]} 25... gxf5 {[%clk 0:01:06.4]} 26. Bh3
{[%clk 0:00:51.3]} 26... f4 {[%clk 0:00:47.6]} 27. gxf4 {[%clk 0:00:48]} 27...
exf4 {[%clk 0:00:48.5]} 28. Qg4 {[%clk 0:00:46.3]} 28... h6 {[%clk 0:00:45.6]}
29. Bf6 {[%clk 0:00:39.8]} 29... Qg6 {[%clk 0:00:36.9]} 30. Qxg6+ {[%clk
0:00:27.7]} 30... fxg6 {[%clk 0:00:37.8]} 31. Bg2 {[%clk 0:00:26.7]} 31... c6
{[%clk 0:00:36.6]} 32. h4 {[%clk 0:00:24.8]} 32... Kf7 {[%clk 0:00:36.6]} 33.
Bc3 {[%clk 0:00:24.3]} 33... g5 {[%clk 0:00:36.9]} 34. hxg5 {[%clk 0:00:23]}
34... hxg5 {[%clk 0:00:37.8]} 35. Bh3 {[%clk 0:00:21.4]} 35... Kg6 {[%clk
0:00:36.3]} 36. Kg2 {[%clk 0:00:21]} 36... Rd8 {[%clk 0:00:36]} 37. Bg4 {[%clk
0:00:19.1]} 37... Rd3 {[%clk 0:00:36.2]} 38. Bxa5 {[%clk 0:00:19.1]} 38... b6
{[%clk 0:00:35.8]} 39. Be1 {[%clk 0:00:17.2]} 39... b5 {[%clk 0:00:33.2]} 40.
Bf3 {[%clk 0:00:16.9]} 40... Kf5 {[%clk 0:00:32.1]} 41. Bxc6 {[%clk 0:00:15.6]}
41... bxc4 {[%clk 0:00:32.5]} 42. Bb5 {[%clk 0:00:14.1]} 42... g4 {[%clk
0:00:28.3]} 43. Bxc4 {[%clk 0:00:13.7]} 43... f3+ {[%clk 0:00:27.7]} 44. Kh1
{[%clk 0:00:09.9]} 44... Rd6 {[%clk 0:00:25.7]} 45. Bf2 {[%clk 0:00:03.7]} 45...
Bxf2 {[%clk 0:00:17.5]} 46. Rxf2 {[%clk 0:00:04.6]} 46... Kf4 {[%clk 0:00:18.4]}
47. Kg1 {[%clk 0:00:03.8]} 47... g3 {[%clk 0:00:18]} 48. Rf1 {[%clk 0:00:04.3]}
48... Rh6 {[%clk 0:00:17.4]} 49. Bd5 {[%clk 0:00:03.2]} 49... f2+ {[%clk
0:00:17.1]} 50. Rxf2+ {[%clk 0:00:02.2]} 50... gxf2+ {[%clk 0:00:18]} 51. Kxf2
{[%clk 0:00:03.1]} 51... Rh2+ {[%clk 0:00:17.5]} 52. Ke1 {[%clk 0:00:03.4]}
52... Ke3 {[%clk 0:00:17.5]} 53. Kd1 {[%clk 0:00:03.2]} 53... Rd2+ {[%clk
0:00:17.5]} 54. Kc1 {[%clk 0:00:01.9]} 54... Rxd5 {[%clk 0:00:18.4]} 55. Kc2
{[%clk 0:00:02.7]} 55... Kd4 {[%clk 0:00:18.9]} 56. a4 {[%clk 0:00:01.4]} 56...
Rh5 {[%clk 0:00:19.2]} 57. Kb2 {[%clk 0:00:01.6]} 57... Kc5 {[%clk 0:00:19.4]}
58. Ka3 {[%clk 0:00:02.5]} 58... Rh3 {[%clk 0:00:19.4]} 0-1

[Event "*** Titled Tuesday Blitz"]
[Site "Chess.com"]
[Date "2020.04.14"]
[Round "6"]
[White "karwowskikacper"]
[Black "Teidi96"]
[Result "1-0"]
[WhiteElo "2343"]
[BlackElo "2182"]
[TimeControl "180+1"]
[EndTime "11:04:33 PDT"]
[Termination "karwowskikacper won on time"]

1. e4 {[%clk 0:03:00.9]} 1... c5 {[%clk 0:02:56.8]} 2. Nf3 {[%clk 0:03:00.5]}
2... e6 {[%clk 0:02:57.2]} 3. d4 {[%clk 0:03:00.8]} 3... cxd4 {[%clk 0:02:58.1]}
4. Nxd4 {[%clk 0:03:01.7]} 4... Nc6 {[%clk 0:02:58.7]} 5. Nc3 {[%clk 0:03:02.1]}
5... Qc7 {[%clk 0:02:59.1]} 6. Be3 {[%clk 0:03:01.5]} 6... a6 {[%clk 0:02:58.6]}
7. Bd3 {[%clk 0:03:01.3]} 7... Nf6 {[%clk 0:02:58.7]} 8. O-O {[%clk 0:03:01.5]}
8... Ne5 {[%clk 0:02:57.7]} 9. f4 {[%clk 0:02:59.9]} 9... Neg4 {[%clk
0:02:55.7]} 10. Qf3 {[%clk 0:02:57]} 10... Nxe3 {[%clk 0:02:53.4]} 11. Qxe3
{[%clk 0:02:57.9]} 11... Bc5 {[%clk 0:02:52.2]} 12. Nce2 {[%clk 0:02:57.2]}
12... d6 {[%clk 0:02:40.1]} 13. h3 {[%clk 0:02:51.8]} 13... e5 {[%clk
0:02:33.4]} 14. fxe5 {[%clk 0:02:47.7]} 14... dxe5 {[%clk 0:02:34.3]} 15. c3
{[%clk 0:02:48]} 15... O-O {[%clk 0:02:17.6]} 16. Kh1 {[%clk 0:02:40.6]} 16...
Qb6 {[%clk 0:02:05]} 17. b4 {[%clk 0:02:12.8]} 17... exd4 {[%clk 0:02:02.9]} 18.
bxc5 {[%clk 0:02:07]} 18... dxe3 {[%clk 0:02:02.9]} 19. cxb6 {[%clk 0:02:07.4]}
19... Rd8 {[%clk 0:02:00.6]} 20. Rad1 {[%clk 0:02:00.1]} 20... Be6 {[%clk
0:01:57.3]} 21. Nd4 {[%clk 0:01:55.5]} 21... Bxa2 {[%clk 0:01:52]} 22. Rfe1
{[%clk 0:01:52.9]} 22... Rac8 {[%clk 0:01:46.1]} 23. Nf3 {[%clk 0:01:43.5]}
23... Rxc3 {[%clk 0:01:41.6]} 24. Bxa6 {[%clk 0:01:18.3]} 24... Rxd1 {[%clk
0:01:17.1]} 25. Rxd1 {[%clk 0:01:19.2]} 25... g6 {[%clk 0:01:14.5]} 26. Bxb7
{[%clk 0:01:15.8]} 26... e2 {[%clk 0:00:29.2]} 27. Re1 {[%clk 0:01:12.3]} 27...
Bc4 {[%clk 0:00:28.5]} 28. Bd5 {[%clk 0:01:05.4]} 28... Bxd5 {[%clk 0:00:16.1]}
29. exd5 {[%clk 0:01:06.3]} 29... Nxd5 {[%clk 0:00:15.7]} 30. Rxe2 {[%clk
0:00:57.9]} 30... Nxb6 {[%clk 0:00:12.4]} 31. h4 {[%clk 0:00:58.8]} 31... h5
{[%clk 0:00:11.6]} 32. Kh2 {[%clk 0:00:58.4]} 32... Nd5 {[%clk 0:00:11.3]} 33.
Kg3 {[%clk 0:00:58.4]} 33... Rc4 {[%clk 0:00:10.4]} 34. Ne5 {[%clk 0:00:53.4]}
34... Ra4 {[%clk 0:00:08.1]} 35. Rd2 {[%clk 0:00:45.9]} 35... Ra3+ {[%clk
0:00:07]} 36. Kf2 {[%clk 0:00:43.8]} 36... Nf4 {[%clk 0:00:05.8]} 37. g3 {[%clk
0:00:42.6]} 37... Ne6 {[%clk 0:00:05.3]} 38. Rd7 {[%clk 0:00:41.7]} 38... Ra2+
{[%clk 0:00:04.4]} 39. Kf3 {[%clk 0:00:37.3]} 39... Ra5 {[%clk 0:00:04.4]} 40.
Nd3 {[%clk 0:00:25]} 40... Kg7 {[%clk 0:00:04.3]} 41. Kg2 {[%clk 0:00:22.2]}
41... Kf6 {[%clk 0:00:04.4]} 42. Rd6 {[%clk 0:00:18.6]} 42... Ra4 {[%clk
0:00:02.8]} 43. Rd5 {[%clk 0:00:17.5]} 43... Rd4 {[%clk 0:00:02.1]} 44. Rxd4
{[%clk 0:00:15.2]} 44... Nxd4 {[%clk 0:00:03]} 45. Kf2 {[%clk 0:00:15.8]} 45...
Ne6 {[%clk 0:00:03.1]} 46. Kf3 {[%clk 0:00:15.4]} 46... Kf5 {[%clk 0:00:03.5]}
47. Nf2 {[%clk 0:00:14.8]} 47... Nd4+ {[%clk 0:00:03.7]} 48. Ke3 {[%clk
0:00:14.9]} 48... Nc6 {[%clk 0:00:04.1]} 49. Kf3 {[%clk 0:00:14.3]} 49... f6
{[%clk 0:00:04.5]} 50. Kg2 {[%clk 0:00:13.5]} 50... Ne5 {[%clk 0:00:04.6]} 51.
Nd1 {[%clk 0:00:13.2]} 51... Ng4 {[%clk 0:00:04.5]} 52. Kf3 {[%clk 0:00:13]}
52... Ke5 {[%clk 0:00:04.6]} 53. Nc3 {[%clk 0:00:12.7]} 53... Kd4 {[%clk
0:00:04.6]} 54. Ne2+ {[%clk 0:00:12.9]} 54... Kd3 {[%clk 0:00:04.2]} 55. Nf4+
{[%clk 0:00:13.8]} 55... Kd4 {[%clk 0:00:03.6]} 56. Nxg6 {[%clk 0:00:14.7]}
56... Kd5 {[%clk 0:00:03.6]} 57. Nf4+ {[%clk 0:00:14.6]} 57... Ke5 {[%clk
0:00:02.3]} 58. Nxh5 {[%clk 0:00:15.5]} 1-0

[Event "*** Titled Tuesday Blitz"]
[Site "Chess.com"]
[Date "2020.04.14"]
[Round "6"]
[White "malandragem"]
[Black "stanyga"]
[Result "0-1"]
[WhiteElo "2510"]
[BlackElo "2676"]
[TimeControl "180+1"]
[EndTime "11:04:37 PDT"]
[Termination "stanyga won by resignation"]

1. e4 {[%clk 0:03:00.9]} 1... c5 {[%clk 0:02:59.3]} 2. Nc3 {[%clk 0:03:01.4]}
2... Nc6 {[%clk 0:02:57.9]} 3. g3 {[%clk 0:03:01.9]} 3... g6 {[%clk 0:02:57.9]}
4. Bg2 {[%clk 0:03:02.2]} 4... Bg7 {[%clk 0:02:58.4]} 5. Nge2 {[%clk 0:03:02.7]}
5... d6 {[%clk 0:02:58.9]} 6. d3 {[%clk 0:03:01.7]} 6... e5 {[%clk 0:02:59.3]}
7. Nd5 {[%clk 0:03:00.8]} 7... Nge7 {[%clk 0:02:58.4]} 8. Nec3 {[%clk
0:02:53.4]} 8... O-O {[%clk 0:02:55.1]} 9. Bg5 {[%clk 0:02:50.7]} 9... f6 {[%clk
0:02:53.8]} 10. Be3 {[%clk 0:02:50.7]} 10... Nd4 {[%clk 0:02:49]} 11. Qd2 {[%clk
0:02:50.2]} 11... Bg4 {[%clk 0:02:45.4]} 12. Bxd4 {[%clk 0:02:31.6]} 12... cxd4
{[%clk 0:02:43.8]} 13. Nxe7+ {[%clk 0:02:32]} 13... Qxe7 {[%clk 0:02:43.6]} 14.
Nd5 {[%clk 0:02:32.9]} 14... Qf7 {[%clk 0:02:43.1]} 15. f4 {[%clk 0:01:43.5]}
15... Be6 {[%clk 0:02:33.6]} 16. O-O-O {[%clk 0:01:38.8]} 16... f5 {[%clk
0:02:24]} 17. Kb1 {[%clk 0:01:30.7]} 17... fxe4 {[%clk 0:02:10.3]} 18. dxe4
{[%clk 0:01:31.6]} 18... Bxd5 {[%clk 0:02:10.2]} 19. exd5 {[%clk 0:01:30.4]}
19... exf4 {[%clk 0:02:09.8]} 20. Rhf1 {[%clk 0:01:29.7]} 20... g5 {[%clk
0:02:06.6]} 21. h4 {[%clk 0:01:26]} 21... Qh5 {[%clk 0:01:59.5]} 22. hxg5 {[%clk
0:01:26.3]} 22... f3 {[%clk 0:01:33.2]} 23. Bh1 {[%clk 0:01:16.2]} 23... Rae8
{[%clk 0:01:23]} 24. Rde1 {[%clk 0:01:16.6]} 24... Rxe1+ {[%clk 0:01:01.8]} 25.
Qxe1 {[%clk 0:01:17.5]} 25... Be5 {[%clk 0:00:59.4]} 26. g4 {[%clk 0:01:12.4]}
26... Qxg4 {[%clk 0:00:56.4]} 27. Qd1 {[%clk 0:01:11.3]} 27... Qxg5 {[%clk
0:00:51.2]} 28. Rg1 {[%clk 0:01:05.1]} 28... Bg3 {[%clk 0:00:49.7]} 29. Bxf3
{[%clk 0:01:05.5]} 29... Kh8 {[%clk 0:00:47.9]} 30. Qd3 {[%clk 0:01:01.3]} 30...
Qf4 {[%clk 0:00:21.6]} 31. a3 {[%clk 0:01:01.5]} 31... Qxf3 {[%clk 0:00:20.8]}
32. Rxg3 {[%clk 0:00:56.3]} 32... Qxd3 {[%clk 0:00:20.9]} 33. Rxd3 {[%clk
0:00:57.2]} 33... Rf4 {[%clk 0:00:20.7]} 34. Rg3 {[%clk 0:00:49.5]} 34... h5
{[%clk 0:00:19.6]} 35. Ka2 {[%clk 0:00:49.7]} 35... Kh7 {[%clk 0:00:19]} 36. Kb3
{[%clk 0:00:49.1]} 36... h4 {[%clk 0:00:18.5]} 37. Rh3 {[%clk 0:00:45.6]} 37...
Kg6 {[%clk 0:00:18.2]} 38. c4 {[%clk 0:00:45]} 38... dxc3 {[%clk 0:00:16.4]} 39.
bxc3 {[%clk 0:00:45.3]} 39... Kg5 {[%clk 0:00:16.4]} 40. c4 {[%clk 0:00:43.2]}
40... Kg4 {[%clk 0:00:16.1]} 41. Rh1 {[%clk 0:00:43.1]} 41... h3 {[%clk
0:00:16.3]} 42. c5 {[%clk 0:00:40.8]} 42... dxc5 {[%clk 0:00:15.2]} 43. Rg1+
{[%clk 0:00:41]} 43... Kf3 {[%clk 0:00:14.7]} 44. d6 {[%clk 0:00:41.1]} 44...
Rd4 {[%clk 0:00:13.1]} 45. Rg6 {[%clk 0:00:36.5]} 45... h2 {[%clk 0:00:12.4]}
46. Rh6 {[%clk 0:00:31.4]} 46... Kg2 {[%clk 0:00:11.4]} 47. Rg6+ {[%clk
0:00:32]} 47... Kh3 {[%clk 0:00:11.3]} 48. Rh6+ {[%clk 0:00:32.4]} 48... Kg3
{[%clk 0:00:11.5]} 49. Rg6+ {[%clk 0:00:30.6]} 49... Rg4 {[%clk 0:00:11.2]} 50.
Rxg4+ {[%clk 0:00:27]} 50... Kxg4 {[%clk 0:00:12.1]} 51. d7 {[%clk 0:00:27.6]}
51... h1=Q {[%clk 0:00:12.1]} 52. d8=Q {[%clk 0:00:28.2]} 52... Qc6 {[%clk
0:00:11.2]} 53. a4 {[%clk 0:00:22.5]} 53... Qb6+ {[%clk 0:00:10.4]} 54. Qxb6
{[%clk 0:00:22.3]} 54... axb6 {[%clk 0:00:11.3]} 55. Kc4 {[%clk 0:00:16.7]}
55... Kf5 {[%clk 0:00:11.4]} 56. Kb3 {[%clk 0:00:14]} 56... Ke4 {[%clk
0:00:11.3]} 57. Kc4 {[%clk 0:00:14]} 57... Ke5 {[%clk 0:00:11.6]} 58. Kc3 {[%clk
0:00:09.6]} 58... Kd5 {[%clk 0:00:11.5]} 0-1

[Event "*** Titled Tuesday Blitz"]
[Site "Chess.com"]
[Date "2020.04.14"]
[Round "6"]
[White "arctic_t00"]
[Black "Training_Day"]
[Result "1-0"]
[WhiteElo "2491"]
[BlackElo "2310"]
[TimeControl "180+1"]
[EndTime "11:04:40 PDT"]
[Termination "arctic_t00 won by resignation"]

1. d4 {[%clk 0:03:00.9]} 1... Nf6 {[%clk 0:02:50.6]} 2. Nf3 {[%clk 0:03:00.9]}
2... d5 {[%clk 0:02:49.9]} 3. e3 {[%clk 0:02:59.6]} 3... e6 {[%clk 0:02:48.8]}
4. Bd3 {[%clk 0:02:58.8]} 4... c5 {[%clk 0:02:48.4]} 5. b3 {[%clk 0:02:58.5]}
5... Nc6 {[%clk 0:02:48.2]} 6. O-O {[%clk 0:02:57.8]} 6... Bd6 {[%clk
0:02:47.4]} 7. c4 {[%clk 0:02:57.2]} 7... cxd4 {[%clk 0:02:39.7]} 8. exd4 {[%clk
0:02:58.1]} 8... O-O {[%clk 0:02:39.4]} 9. Bb2 {[%clk 0:02:58.1]} 9... b6 {[%clk
0:02:39.2]} 10. Nbd2 {[%clk 0:02:55.4]} 10... Bb7 {[%clk 0:02:39]} 11. Qe2
{[%clk 0:02:55.2]} 11... Nb4 {[%clk 0:02:35.3]} 12. Bb1 {[%clk 0:02:53.5]} 12...
Rc8 {[%clk 0:02:34.6]} 13. a3 {[%clk 0:02:51.3]} 13... Nc6 {[%clk 0:02:34.4]}
14. Bd3 {[%clk 0:02:46.6]} 14... Re8 {[%clk 0:02:34]} 15. Rad1 {[%clk 0:02:40]}
15... Bf8 {[%clk 0:02:33.1]} 16. Rfe1 {[%clk 0:02:34.8]} 16... g6 {[%clk
0:02:32.5]} 17. Nf1 {[%clk 0:02:19.5]} 17... Bg7 {[%clk 0:02:18.7]} 18. Ne3
{[%clk 0:01:56.9]} 18... Ne4 {[%clk 0:01:54.4]} 19. Ne5 {[%clk 0:01:24.6]} 19...
Nxe5 {[%clk 0:01:40.9]} 20. dxe5 {[%clk 0:01:24.3]} 20... Qe7 {[%clk 0:01:23.2]}
21. b4 {[%clk 0:01:15.1]} 21... Red8 {[%clk 0:01:00.6]} 22. f3 {[%clk
0:01:11.8]} 22... d4 {[%clk 0:00:47.1]} 23. Bxe4 {[%clk 0:00:42]} 23... Bxe4
{[%clk 0:00:46.2]} 24. Ng4 {[%clk 0:00:34.2]} 24... Bb7 {[%clk 0:00:34.3]} 25.
Bxd4 {[%clk 0:00:33.1]} 25... Ba6 {[%clk 0:00:31]} 26. b5 {[%clk 0:00:31.2]}
26... Bb7 {[%clk 0:00:30.3]} 27. Nf6+ {[%clk 0:00:30.7]} 27... Bxf6 {[%clk
0:00:16.6]} 28. exf6 {[%clk 0:00:31.6]} 28... Qxa3 {[%clk 0:00:15.1]} 29. h4
{[%clk 0:00:20.6]} 29... Qf8 {[%clk 0:00:06]} 30. Bf2 {[%clk 0:00:09.6]} 30...
Rxd1 {[%clk 0:00:03.6]} 31. Rxd1 {[%clk 0:00:09.4]} 31... Rd8 {[%clk 0:00:03.9]}
32. Rxd8 {[%clk 0:00:09.4]} 32... Qxd8 {[%clk 0:00:03.8]} 33. Qe5 {[%clk
0:00:09.8]} 33... a6 {[%clk 0:00:02.2]} 34. Kh2 {[%clk 0:00:09.9]} 34... axb5
{[%clk 0:00:02.3]} 35. cxb5 {[%clk 0:00:10.8]} 35... Bd5 {[%clk 0:00:02.7]} 36.
Bg3 {[%clk 0:00:10.8]} 36... h5 {[%clk 0:00:02.5]} 37. Qg5 {[%clk 0:00:10.8]}
37... Bc4 {[%clk 0:00:02.2]} 38. Bf4 {[%clk 0:00:08.1]} 38... Qf8 {[%clk
0:00:02.1]} 39. Qe5 {[%clk 0:00:07.6]} 39... Qc5 {[%clk 0:00:01.5]} 40. Qb8+
{[%clk 0:00:07.1]} 40... Qf8 {[%clk 0:00:01.6]} 41. Qxb6 {[%clk 0:00:06.6]}
41... Bd5 {[%clk 0:00:01.5]} 42. Qd4 {[%clk 0:00:05.9]} 42... Kh7 {[%clk
0:00:02.4]} 43. Qe5 {[%clk 0:00:06]} 43... Qc8 {[%clk 0:00:02.5]} 44. Qg5 {[%clk
0:00:06.5]} 44... Qf8 {[%clk 0:00:02.6]} 45. b6 {[%clk 0:00:06.6]} 45... Bb7
{[%clk 0:00:03.5]} 46. Qe5 {[%clk 0:00:06.5]} 46... Qg8 {[%clk 0:00:02.9]} 47.
Qc7 {[%clk 0:00:06.6]} 47... Bd5 {[%clk 0:00:02.9]} 48. b7 {[%clk 0:00:06.9]}
48... Bxb7 {[%clk 0:00:01.8]} 49. Qxb7 {[%clk 0:00:07.8]} 49... e5 {[%clk
0:00:01.6]} 50. Qe4 {[%clk 0:00:08.1]} 50... exf4 {[%clk 0:00:02.5]} 51. Qxf4
{[%clk 0:00:08.4]} 51... Qe8 {[%clk 0:00:03.1]} 52. Qg5 {[%clk 0:00:08.2]} 52...
Qg8 {[%clk 0:00:04]} 53. Qf4 {[%clk 0:00:08.4]} 53... Qe8 {[%clk 0:00:04.9]} 54.
Qd6 {[%clk 0:00:08.8]} 54... Kg8 {[%clk 0:00:05.4]} 55. Qe7 {[%clk 0:00:08.5]}
55... Qb8+ {[%clk 0:00:05.8]} 56. Kh3 {[%clk 0:00:08.5]} 56... Qf4 {[%clk
0:00:06]} 57. Qe8+ {[%clk 0:00:07.9]} 57... Kh7 {[%clk 0:00:04.5]} 58. Qxf7+
{[%clk 0:00:08.1]} 1-0

[Event "*** Titled Tuesday Blitz"]
[Site "Chess.com"]
[Date "2020.04.14"]
[Round "6"]
[White "temiksmozg"]
[Black "BocharovD"]
[Result "1-0"]
[WhiteElo "2660"]
[BlackElo "2860"]
[TimeControl "180+1"]
[EndTime "11:04:41 PDT"]
[Termination "temiksmozg won by resignation"]

1. d4 {[%clk 0:03:00.9]} 1... Nf6 {[%clk 0:02:59.7]} 2. c4 {[%clk 0:02:58]} 2...
e6 {[%clk 0:03:00.2]} 3. Nc3 {[%clk 0:02:57]} 3... Bb4 {[%clk 0:03:00.7]} 4. e3
{[%clk 0:02:57.1]} 4... O-O {[%clk 0:03:00.5]} 5. Bd3 {[%clk 0:02:56.8]} 5... d5
{[%clk 0:03:00.7]} 6. Nf3 {[%clk 0:02:56.9]} 6... b6 {[%clk 0:03:00]} 7. O-O
{[%clk 0:02:55.9]} 7... Ba6 {[%clk 0:02:59.1]} 8. cxd5 {[%clk 0:02:55]} 8...
Bxd3 {[%clk 0:02:58.9]} 9. Qxd3 {[%clk 0:02:55.5]} 9... exd5 {[%clk 0:02:59.5]}
10. Ne5 {[%clk 0:02:49.2]} 10... Re8 {[%clk 0:02:58.7]} 11. Bd2 {[%clk
0:02:47.3]} 11... Bd6 {[%clk 0:02:58.5]} 12. f4 {[%clk 0:02:46.1]} 12... c5
{[%clk 0:02:56.6]} 13. Be1 {[%clk 0:02:46.3]} 13... Nbd7 {[%clk 0:02:50.6]} 14.
Bh4 {[%clk 0:02:46.5]} 14... Be7 {[%clk 0:02:46.4]} 15. Rad1 {[%clk 0:02:28.8]}
15... Rc8 {[%clk 0:02:33.9]} 16. dxc5 {[%clk 0:02:10]} 16... Nxc5 {[%clk
0:02:22.8]} 17. Qf5 {[%clk 0:02:07.2]} 17... g6 {[%clk 0:02:09.1]} 18. Qh3
{[%clk 0:02:00]} 18... Nce4 {[%clk 0:02:07.7]} 19. Bxf6 {[%clk 0:01:06.3]} 19...
Nxf6 {[%clk 0:02:06.8]} 20. Rd3 {[%clk 0:01:06.7]} 20... Bd6 {[%clk 0:01:54.2]}
21. Ng4 {[%clk 0:00:58.5]} 21... Nxg4 {[%clk 0:01:43.3]} 22. Qxg4 {[%clk
0:00:59.4]} 22... Qf6 {[%clk 0:01:34.7]} 23. f5 {[%clk 0:00:40.4]} 23... Qe5
{[%clk 0:01:33.1]} 24. g3 {[%clk 0:00:39.6]} 24... Rc5 {[%clk 0:01:29.9]} 25.
Qf3 {[%clk 0:00:31.9]} 25... Qxf5 {[%clk 0:01:21.7]} 26. Qxf5 {[%clk 0:00:31.7]}
26... gxf5 {[%clk 0:01:21.6]} 27. Nxd5 {[%clk 0:00:32.1]} 27... Be5 {[%clk
0:01:21.8]} 28. b4 {[%clk 0:00:28.9]} 28... Rc2 {[%clk 0:01:21.4]} 29. a3 {[%clk
0:00:28.5]} 29... f6 {[%clk 0:01:15.5]} 30. Rxf5 {[%clk 0:00:28.6]} 30... Kf7
{[%clk 0:01:13.5]} 31. Rf2 {[%clk 0:00:28.3]} 31... Rec8 {[%clk 0:01:12.8]} 32.
Rdd2 {[%clk 0:00:19.6]} 32... Rc1+ {[%clk 0:01:08.3]} 33. Kg2 {[%clk 0:00:19.6]}
33... Ra1 {[%clk 0:01:05.8]} 34. Nxf6 {[%clk 0:00:19.8]} 34... Bxf6 {[%clk
0:00:55]} 35. Rd6 {[%clk 0:00:20.1]} 35... Rxa3 {[%clk 0:00:52.5]} 36. Rdxf6+
{[%clk 0:00:19.8]} 36... Kg8 {[%clk 0:00:51.4]} 37. Rf7 {[%clk 0:00:16.8]} 37...
Re8 {[%clk 0:00:28.2]} 38. Rb7 {[%clk 0:00:14.7]} 38... Rexe3 {[%clk 0:00:25.6]}
39. Rff7 {[%clk 0:00:15.1]} 39... Re2+ {[%clk 0:00:25.8]} 40. Kh3 {[%clk
0:00:15.6]} 40... Raa2 {[%clk 0:00:26.1]} 41. Rg7+ {[%clk 0:00:15.6]} 41... Kf8
{[%clk 0:00:25.8]} 42. Rbf7+ {[%clk 0:00:14.5]} 42... Ke8 {[%clk 0:00:25.7]} 43.
Rxa7 {[%clk 0:00:12.4]} 43... Rxh2+ {[%clk 0:00:24.3]} 44. Kg4 {[%clk
0:00:12.8]} 44... Rxa7 {[%clk 0:00:23.3]} 45. Rxa7 {[%clk 0:00:13.7]} 45... Rb2
{[%clk 0:00:22.9]} 46. Rxh7 {[%clk 0:00:13.4]} 46... Rxb4+ {[%clk 0:00:23.1]}
47. Kf5 {[%clk 0:00:14]} 47... Kf8 {[%clk 0:00:22.4]} 48. g4 {[%clk 0:00:13.2]}
48... Rb1 {[%clk 0:00:21.2]} 49. Rb7 {[%clk 0:00:13]} 49... b5 {[%clk 0:00:21]}
50. Kg6 {[%clk 0:00:10.8]} 50... b4 {[%clk 0:00:17.8]} 51. g5 {[%clk 0:00:11]}
51... b3 {[%clk 0:00:18]} 52. Rb8+ {[%clk 0:00:11.4]} 52... Ke7 {[%clk
0:00:17.8]} 53. Kg7 {[%clk 0:00:12.3]} 53... Rg1 {[%clk 0:00:13.5]} 54. g6
{[%clk 0:00:12]} 54... Rg3 {[%clk 0:00:14.1]} 55. Kh7 {[%clk 0:00:11.4]} 55...
Rh3+ {[%clk 0:00:14.4]} 56. Kg8 {[%clk 0:00:11.5]} 56... Rg3 {[%clk 0:00:13.4]}
57. g7 {[%clk 0:00:11.9]} 57... Kf6 {[%clk 0:00:13.7]} 58. Rb6+ {[%clk
0:00:11.8]} 58... Ke7 {[%clk 0:00:14.6]} 59. Rb5 {[%clk 0:00:12]} 59... Kf6
{[%clk 0:00:14.9]} 60. Kf8 {[%clk 0:00:12.4]} 60... Rxg7 {[%clk 0:00:10.6]} 61.
Rb6+ {[%clk 0:00:12.5]} 61... Ke5 {[%clk 0:00:11.5]} 62. Kxg7 {[%clk 0:00:12.7]}
62... Kd4 {[%clk 0:00:12.4]} 63. Rxb3 {[%clk 0:00:12.8]} 1-0